Cogmind - Beta 11.1 @@@ ROGUE MODE // 2022.09.05 @ 00:29:34 Player: Okkudo Result: Destroyed by G-34 Mercenary with Small Laser Performance ------------- Evolutions (0) 0 Regions Visited (1) 200 Robots Destroyed (12) 60 Value Destroyed (328) 328 Prototype IDs (0) 0 Alien Tech Used (0) 0 Bonus (0) 0 TOTAL SCORE: 588 Bonus ------- None Cogmind --------- Core Integrity 0/250 Matter 288/300 Energy 125/125 System Corruption 0% Temperature Cool (9) Movement Walking (120) Location -10/Materials Parts ------- > --- POWER (1) -------- Light Ion Engine > --- PROPULSION (2) --- Aluminum Leg Aluminum Leg > --- UTILITY (2) ------ Small Storage Unit Light Armor Plating > --- WEAPON (2) ------- Small Laser Assault Rifle > --- INVENTORY (8) ---- Light Nuclear Core Small Matter Pod (50) Visual Processing Unit Sensor Array Small Laser Mining Claw Peak State ------------ > --- POWER ------------ Ion Engine > --- PROPULSION ------- Aluminum Leg Aluminum Leg > --- UTILITY ---------- Small Storage Unit Light Armor Plating > --- WEAPON ----------- Small Laser Assault Rifle > --- INVENTORY -------- Light Ion Engine Aluminum Leg Small Matter Pod Visual Processing Unit Sensor Array Small Laser [Rating: 7] Favorites ----------- Power Light Ion Engine Engine Light Ion Engine Propulsion Aluminum Leg Leg Aluminum Leg Utility Small Storage Unit Storage Small Storage Unit Protection Light Armor Plating Weapon Small Laser Energy Gun Small Laser Ballistic Gun Assault Rifle Build | -11 -10 ------- Run | Scr Mat Slots Evolved . | . . Power . | . . Propulsion . | . . Utility . | . . Weapon . | . . Parts Attached 10 | 6 4 Power 2 | 1 1 Engine 2 | 1 1 Core . | . . Reactor . | . . Propulsion 4 | 2 2 Treads . | . . Leg 4 | 2 2 Wheel . | . . Hover . | . . Flight . | . . Utility 2 | 1 1 Device . | . . Storage 1 | 1 . Processor . | . . Hackware . | . . Protection 1 | . 1 Artifact . | . . Weapon 2 | 2 . Energy Gun 1 | 1 . Energy Cannon . | . . Ballistic Gun 1 | 1 . Ballistic Cannon . | . . Launcher . | . . Special Weapon . | . . Impact Weapon . | . . Slashing Weapon . | . . Piercing Weapon . | . . Special Melee Weapon . | . . Unidentified Prototypes . | . . Parts Lost 1 | . 1 Power 1 | . 1 Propulsion . | . . Utility . | . . Weapon . | . . Highest Loss Streak 1 | . 1 To Critical Strikes . | . . Average Slot Usage (%) 95 | . 95 Engine 14 | . 14 Leg 28 | . 28 Storage 14 | . 14 Protection 10 | . 10 Energy Gun 14 | . 14 Ballistic Gun 14 | . 14 Naked Turns . | . . Heaviest Build 16 | 13 16 Greatest Support 20 | 20 20 Greatest Overweight (x) 3 | 3 . Average Overweight (x) . | . . Largest Inventory Capacity 8 | 8 8 Average Capacity 7 | 7 8 Most Carried 7 | 4 7 Average Carried 4 | 1 5 Final Capacity 8 | 8 8 Final Carried 6 | 2 6 Class Distribution -------------------- 100% | Mutant Dominant Class ---------------- Mutant | -10/Materials Resources | -11 -10 ----------- Run | Scr Mat Matter Collected 492 | 269 223 Remotely . | . . Salvage Created 517 | 73 444 Parts 29 | 3 26 Haulers Intercepted 1 | . 1 Recyclers Shooed . | . . Parts Field Recycled . | . . Retrieved Matter . | . . Parts Self-Destructed . | . . Prevented . | . . Kills | -11 -10 ------- Run | Scr Mat Combat Hostiles Destroyed 8 | . 8 Guns 8 | . 8 Classes Destroyed 4 | 1 3 Hauler 1 | . 1 Recycler 2 | 1 1 Watcher 1 | . 1 Grunt 8 | . 8 Best Kill Streak 2 | 1 2 Combat Bots Only 2 | . 2 Max Kills in Single Turn 1 | 1 1 Gunslinging . | . . Exploded . | . . Melee . | . . Uniques/NPCs Destroyed . | . . Combat | -11 -10 -------- Run | Scr Mat Damage Taken 696 | . 696 Core 257 | . 257 Absorbed by Shields . | . . Core Remaining (%) 100 | 100 . Volleys Fired 53 | 3 50 Largest 2 | 2 2 Hottest 60 | 60 60 Shots Fired 106 | 6 100 Gun 106 | 6 100 Cannon . | . . Launcher . | . . Special . | . . Kinetic 53 | 3 50 Thermal 53 | 3 50 Explosive . | . . Electromagnetic . | . . Robot Hit Streak 8 | 4 8 Robot Miss Streak 6 | 1 6 Penetration Max . | . . Secondary Targets . | . . Shots Hit Robots 63 | 4 59 Core Hits 23 | 2 21 Critical Kills . | . . Critical Parts Destroyed . | . . Critical Strikes . | . . Melee Attacks . | . . Impact . | . . Slashing . | . . Piercing . | . . Sneak Attacks . | . . Combat Hostiles . | . . Follow-up Attacks . | . . Damage Inflicted 752 | 44 708 Guns 752 | 44 708 Cannons . | . . Explosions . | . . Melee . | . . Ramming . | . . Kinetic 404 | 22 382 Thermal 348 | 22 326 Explosive . | . . Electromagnetic . | . . Impact . | . . Slashing . | . . Piercing . | . . Highest Corruption . | . . Average Corruption . | . . Corruption Purged . | . . Corruption Blocked . | . . Overload Shots . | . . Overflow Damage . | . . Projectiles . | . . Explosions . | . . Melee . | . . Knockbacks . | . . Impact . | . . Kinetic . | . . Secondary . | . . Self-Inflicted Damage . | . . Shots . | . . Rammed . | . . Targets Rammed 1 | . 1 Kicked 1 | . 1 Crushed . | . . Highest Temperature 180 | . 180 Average Temperature 51 | . 51 Received Heat Transfer 360 | . 360 Siege Activations . | . . Robots Corrupted . | . . Combat Hostiles . | . . Parts Fried . | . . Impact Corruptions . | . . Robots Melted . | . . Combat Hostiles . | . . Parts Melted 1 | . 1 Heat Transferred 800 | 50 750 Parts Sabotaged . | . . Parts Stolen . | . . Parts Stripped . | . . Power Chain Reactions . | . . Missiles Intercepted . | . . Alert | -11 -10 ------- Run | Scr Mat Peak Influence 192 | 5 192 Initial 3 | . 3 Average 81 | 2 91 Maximum Alert Level . | . . Low Security (%) 100 | 100 100 Level 1 . | . . Level 2 . | . . Level 3 . | . . Level 4 . | . . Level 5 . | . . High Security . | . . Max Security . | . . Squads Dispatched 4 | . 4 Investigation 2 | . 2 Extermination . | . . Reinforcement 2 | . 2 Assault . | . . Garrison . | . . Intercept . | . . Searches Triggered . | . . Construction Impeded . | . . Haulers Reinforced . | . . Active Scanning Responses . | . . Cargo Convoy Interrupts . | . . Stealth | -11 -10 --------- Run | Scr Mat Distress Signals 3 | . 3 Communications Jammed . | . . Distress Signals . | . . Times Spotted 18 | . 18 Peak Tracking Total 3 | . 3 Tactical Retreats 2 | . 2 Traps | -11 -10 ------- Run | Scr Mat Traps Triggered 2 | . 2 Indirectly . | . . Trap Hack Attempts . | . . Triggered . | . . Disarmed . | . . Reprogrammed . | . . Reused . | . . Traps Extracted . | . . Installed . | . . Triggered . | . . Machines | -11 -10 ---------- Run | Scr Mat Machines Disabled . | . . Max in Single Turn . | . . Machines Sabotaged . | . . Garrisons Compromised . | . . Overloaded Fab Kills . | . . Hacking | -11 -10 --------- Run | Scr Mat Machines Accessed 4 | . 4 Terminals 4 | . 4 Fabricators . | . . Repair Stations . | . . Recycling Units . | . . Scanalyzers . | . . Garrison Access . | . . Total Hacks 16 | . 16 Successful 10 | . 10 Failed 6 | . 6 Catastrophic 1 | . 1 Database Lockouts . | . . Manual 8 | . 8 Terminals 16 | . 16 Fabricators . | . . Repair Stations . | . . Recycling Units . | . . Scanalyzers . | . . Garrison Access . | . . Terminal Hacks 7 | . 7 Robot Analysis 1 | . 1 Terminal Index 1 | . 1 Alert Level 2 | . 2 Locate Traps 1 | . 1 Zone Layout 2 | . 2 Fabricator Hacks . | . . Repair Station Hacks . | . . Recycling Unit Hacks . | . . Scanalyzer . | . . Garrison Access Hacks . | . . Unauthorized Hacks 3 | . 3 Terminals 3 | . 3 Botnet 3 | . 3 Fabricators . | . . Repair Stations . | . . Recycling Units . | . . Scanalyzers . | . . Garrison Access . | . . Data Cores Recovered . | . . Used . | . . Hacking Detections 4 | . 4 Full Trace Events 1 | . 1 Feedback Events . | . . Feedback Blocked . | . . Robot Schematics Acquired . | . . Robots Built . | . . Authchips . | . . Time . | . . Total Robot Build Rating . | . . Part Schematics Acquired . | . . Parts Built . | . . Authchips . | . . Time . | . . Total Part Build Rating . | . . Parts Repaired . | . . Time . | . . Parts Recycled . | . . Recycled Matter . | . . Retrieved Matter . | . . Retrieved Components . | . . Parts Scanalyzed . | . . Part Schematics Acquired . | . . Parts Damaged . | . . Bothacking | -11 -10 ------------ Run | Scr Mat Used RIF Installer . | . . Robots Hacked . | . . Non-combat . | . . Combat . | . . Robot Hacks Applied . | . . Relay Couplers Released . | . . Fabnet Peak Effective % . | . . Robots Rewired . | . . Allies Hacked . | . . Hacks Repelled . | . . Allies | -11 -10 -------- Run | Scr Mat Total Allies . | . . Largest Group . | . . Highest-Rated Group . | . . Highest-Rated Ally . | . . Total Orders . | . . Ally Attacks . | . . Total Damage . | . . Kills . | . . Allies Corrupted . | . . Allies Melted . | . . Intel | -11 -10 ------- Run | Scr Mat Robot Analysis Total 1 | . 1 Derelict Logs Recovered . | . . Drone Launches . | . . Drone Recoveries . | . . Exploration | -11 -10 ------------- Run | Scr Mat Turns Passed 748 | 84 664 Spaces Moved 408 | 43 365 Core 13 | 13 . Treads . | . . Legs 395 | 30 365 Wheels . | . . Hover . | . . Flight . | . . Fastest Speed 50 | 50 120 Average Speed 122 | 144 120 Slowest Speed 200 | 200 120 Overloaded Moves . | . . Propulsion Burnouts . | . . Robots Hopped . | . . Cave-ins Triggered . | . . Exploration Rate (%) 31 | 5 57 Regions Visited 1 Branch Regions . Pre-discovered Areas . | . . Known Exits Taken . | . . Unknown Exits Taken 1 | 1 . Scrap Searched . | . . Spaces Dug . | . . Terrain Destroyed . | . . Melee . | . . Projectile . | . . AOE . | . . Terrain Rammed . | . . Walls Destroyed . | . . Machines Disabled . | . . Actions | -11 -10 --------- Run | Scr Mat Total 551 | 59 492 Wait 62 | . 62 Move 407 | 42 365 Hop . | . . Pick Up 16 | 8 8 Fast Attach . | . . Attach 8 | 6 2 Detach . | . . Swap 2 | . 2 Drop 2 | . 2 Fire 53 | 3 50 Melee . | . . Ram . | . . Kick 1 | . 1 Crush . | . . Escape Stasis . | . . Rewire . | . . Trap . | . . Miscellaneous . | . . Route ------- -11/Scrapyard -10/Materials (discovered 2 exits: [*Mat x2]) History --------- Turn | Location | Event 21 | -11/Scrapyard | Discovered new exit (range 15) 85 | -11/Scrapyard | Entered Materials 308 | -10/Materials | Build established: Mutant 368 | -10/Materials | Core integrity fell below 50% 435 | -10/Materials | Discovered new exit (range 6) 703 | -10/Materials | Discovered new exit (range 4) 728 | -10/Materials | Core integrity fell below 20% 749 | -10/Materials | Destroyed by G-34 Mercenary with Small Laser Last Messages --------------- Terminal linked with 2 systems. Awaiting botnet instructions. 00596_ ALERT: Suspicious activity at Terminal M004. Dispatching Investigation squad. 00608_ K-01 Serf collects debris. 00655_ A-02 Transporter destroyed. 00667_ W-16 Scout sends out distress signal. 00667_ Acquired 9 matter. 00673_ R-06 Scavenger collects Wheel. 00677_ R-06 Scavenger collects Weight Redist. System. 00680_ R-06 Scavenger collects Lrg. Matter Pod. 00681_ R-06 Scavenger collects Transport Network Coupler. 00703_ EXIT=FOUND 00727_ Triggered Explosive Trap. 00727_ An explosion rips through the floor. 00740_ U-05 Engineer lays Concrete. 00742_ U-05 Engineer builds a Wall. 00742_ U-05 Engineer lays Concrete. 00745_ U-05 Engineer builds a Door. 00747_ U-05 Engineer builds a Wall. Map ----- +----------------------------------------------------+ | "" ########### ###?????????????????????????? | | "" ########??# ^ #???????????????????????????? | | "" ## #??# #???????????????????????????? | | ## """ #### #???????????????????????????? | | ##### """ / ^ #???????????????????????????? | | ????# """ ######## #???????????????????????????? | | ????# # #??# #####+####??????????????????? | | ????# # < #??# # """ #??????????????????? | | ????# # #??# # "R" #??????????????????? | | ???####+### #### # " " #??????????????????? | | #??# # #??????????????????? | | #### + #??????????????????? | | + # """ #??????????????????? | | #####+############ # """ #??????????????????? | | # T !# # # """ #??????????????????? | | # # # # #??????????????????? | | # """"""" # """ + ########?#??????????????????? | | # """"""" # """ # #???????????????????????????? | | # """"""" # """ # #???????????????????????????? | | # """"""" #? ?# ###?????????????????????????? | | # """"""" # """?# # ############??????????????? | | / # ""??# # #??????????????? | | ###########? "???# #u """"" #??????????????? | | ?????????????????# ug """"" #??????????????? | | ##########???????# # """"" #??????????????? | | # #???????# @ #??????????????? | | # """ #???????# ### ##########??????????????? | | # """ #????? ?###???????????????????????? | | # """ #??? ???????????????????????????? | | + #?? ???????????????????????????? | | # """ #? ???????????????????????????? | | # """ #? * !???????????????????????????? | | # """ # ???????????????????????????? | | # # """"" ""???????????????????????????? | | ########## """"" ""???????????????????????????? | | #?????????? """"" "????????????????????????????? | | #????????? ???????????????????????????? | | #????????? ????????????????????????????? | | #????????? #?????????????????????????????? | | ########## #?????????????????????????????? | | #?????????????????????????????? | | #?????????????????????????????? | | #?????????????????????????????? | | #### ###+#######?????????????????????????????????? | | ???#%# ^ #????????????????????????????????????? | | ???#%# #??????#?????????????????????????????? | | ####=# """ #????? #?????????????????????????????? | | !**%# """ #????? #?????????????????????????????? | | *%==# """ #????? #?????????????????????????????? | | *=[%# """ ###### #?????????????????????????????? | +----------------------------------------------------+ Best States ------------- Heat Dissipation 25 Energy Generation 10 Energy Capacity 250 Matter Stores 300 Matter Capacity 300 Sight Range 16 Terrain Scan Density 10 Armor Coverage 150 Evasion (%) 55 Item Schematics ----------------- None Robot Schematics ------------------ None Fabricated ------------ Nothing Alien Tech Used ----------------- None Achievements -------------- None Challenges ------------ None Game ------ Seed FlakSuspensionShockpuncher Manual? 0 Play Time 00:11:13 Cumulative 40.2 hours Start 2022.09.05 @ 00:18:10 End 2022.09.05 @ 00:29:34 Sessions 1 Manual Loads 0 Difficulty Rogue Special Mode None Game No. 93 Rogue 93 Adventurer 0 Explorer 0 Win Type - Total 0 Types 0/0/0/0/0/0/0/0/0 Lore% 25 Gallery% 25 Achievement% 23 Wizard Run 0 Options --------- ASCII 0 Keyboard 0 Movement Numpad Keybinds 0 Fullscreen 1 Font 12/Smallcaps Map View 83x54 Tactical HUD 1 Map Filters NONE Filters NONE Steam 1 RUN: 8895f15f-4d37-4fe4-84ff-2bdff7e50993